{"text_format":"1","workbook":"xlsx","n_sheets":5,"sheets":["MAQUETTE","extraction base OF","liste automatisée mentions","liste automatisée parcours","LISTES"],"not_rendered":{"charts":0,"images":0,"macros":1,"external_links":5,"defined_names":7,"comments":0,"pivot_tables":0},"unopened":[],"bounds":{"document_bytes":16777216,"sheet_cells":100000,"rows_first":2000,"rows_last":500,"rows_between":2000,"halvings":0,"cell_chars":16384,"cell_head_chars":4096},"cells_cut":0,"cells_raw":0,"read":"whole","date_system":"1900"}

{"sheet":"MAQUETTE","index":0,"n_rows":351,"n_cols":35,"rows_kept":351,"cut":false,"hidden":false,"merged":[[350,0,364,34],[362,35,362,39],[289,0,303,34],[310,16,310,34],[311,16,311,34],[312,16,312,28],[312,29,312,34],[313,21,314,21],[313,22,313,26],[313,27,314,27],[313,28,314,28],[313,29,313,33],[313,34,314,34],[310,0,310,15],[311,0,311,2],[311,3,311,5],[311,6,311,8],[311,9,314,9],[311,10,312,15],[312,0,314,0],[312,1,314,1],[312,2,314,2],[312,3,314,3],[312,6,314,6],[190,22,190,26],[190,27,191,27],[190,28,191,28],[190,29,190,33],[190,34,191,34],[190,35,190,39],[227,0,241,34],[248,16,248,34],[249,16,249,34],[222,15,223,15],[248,0,248,15],[249,0,249,2],[249,3,249,5],[249,6,249,8],[249,9,252,9],[249,10,250,15],[250,0,252,0],[250,1,252,1],[250,2,252,2],[250,3,252,3],[250,4,252,4],[250,5,252,5],[250,16,250,28],[250,29,250,34],[68,35,68,39],[105,0,119,34],[126,16,126,34],[127,16,127,34],[128,16,128,28],[128,29,128,34],[129,21,130,21],[129,22,129,26],[129,27,130,27],[129,28,130,28],[129,29,129,33],[129,34,130,34],[129,35,129,39],[126,0,126,15],[127,0,127,2],[127,3,127,5],[127,6,127,8],[127,9,130,9],[127,10,128,15],[128,0,130,0],[128,1,130,1],[128,2,130,2],[128,3,130,3],[128,4,130,4],[4,16,4,34],[7,34,8,34],[44,0,58,34],[4,0,4,15],[65,16,65,34],[66,16,66,34],[67,16,67,28],[67,29,67,34],[68,21,69,21],[68,22,68,26],[68,27,69,27],[68,28,69,28],[68,29,68,33],[68,34,69,34],[39,10,40,10],[39,11,40,11],[39,12,40,12],[39,13,40,13],[39,14,40,14],[39,15,40,15],[7,27,8,27],[7,28,8,28],[6,16,6,28],[66,9,69,9],[66,10,67,15],[67,0,69,0],[67,1,69,1],[67,2,69,2],[67,3,69,3],[67,4,69,4],[67,5,69,5],[67,6,69,6],[67,7,69,7],[39,6,40,6],[39,0,40,0],[39,8,40,8],[39,4,40,4],[39,9,40,9],[39,1,40,1],[39,3,40,3],[39,2,40,2],[39,5,40,5],[39,7,40,7],[7,35,7,39],[6,2,8,2],[6,3,8,3],[6,4,8,4],[6,5,8,5],[6,6,8,6],[6,7,8,7],[6,8,8,8],[5,9,8,9],[7,10,7,15],[5,10,6,15],[7,16,7,20],[5,0,5,2],[5,3,5,5],[5,6,5,8],[6,0,8,0],[6,1,8,1],[7,21,8,21],[7,22,7,26],[7,29,7,33],[6,29,6,34],[5,16,5,34],[56,35,56,39],[100,0,101,0],[100,1,101,1],[100,2,101,2],[100,3,101,3],[100,4,101,4],[100,5,101,5],[100,6,101,6],[100,7,101,7],[100,8,101,8],[100,9,101,9],[100,10,101,10],[100,11,101,11],[100,12,101,12],[100,13,101,13],[100,14,101,14],[67,8,69,8],[68,10,68,15],[68,16,68,20],[100,15,101,15],[65,0,65,15],[66,0,66,2],[66,3,66,5],[66,6,66,8],[128,5,130,5],[117,35,117,39],[129,16,129,20],[161,0,162,0],[161,1,162,1],[161,2,162,2],[161,3,162,3],[161,4,162,4],[161,5,162,5],[161,6,162,6],[161,7,162,7],[161,8,162,8],[161,9,162,9],[161,10,162,10],[161,11,162,11],[161,12,162,12],[161,13,162,13],[161,14,162,14],[128,6,130,6],[128,7,130,7],[128,8,130,8],[129,10,129,15],[161,15,162,15],[187,0,187,15],[188,0,188,2],[188,3,188,5],[188,6,188,8],[188,9,191,9],[188,10,189,15],[189,0,191,0],[189,1,191,1],[189,2,191,2],[189,3,191,3],[189,4,191,4],[189,5,191,5],[189,7,191,7],[189,8,191,8],[190,10,190,15],[166,0,180,34],[187,16,187,34],[188,16,188,34],[189,16,189,28],[189,29,189,34],[190,21,191,21],[178,35,178,39],[190,16,190,20],[222,0,223,0],[222,1,223,1],[222,2,223,2],[222,3,223,3],[222,4,223,4],[222,5,223,5],[222,6,223,6],[222,7,223,7],[222,8,223,8],[222,9,223,9],[222,10,223,10],[222,11,223,11],[222,12,223,12],[222,13,223,13],[222,14,223,14],[189,6,191,6],[239,35,239,39],[251,16,251,20],[284,12,285,12],[284,13,285,13],[284,14,285,14],[250,6,252,6],[250,7,252,7],[250,8,252,8],[251,10,251,15],[251,35,251,39],[284,15,285,15],[251,21,252,21],[251,22,251,26],[251,27,252,27],[251,28,252,28],[251,29,251,33],[251,34,252,34],[284,6,285,6],[284,7,285,7],[284,8,285,8],[284,0,285,0],[284,1,285,1],[345,15,346,15],[301,35,301,39],[345,0,346,0],[345,1,346,1],[345,2,346,2],[345,3,346,3],[345,4,346,4],[345,5,346,5],[345,6,346,6],[345,7,346,7],[345,8,346,8],[345,9,346,9],[345,10,346,10],[345,11,346,11],[345,12,346,12],[345,13,346,13],[345,14,346,14],[284,2,285,2],[284,3,285,3],[284,4,285,4],[284,5,285,5],[313,35,313,39],[312,7,314,7],[312,8,314,8],[313,10,313,15],[313,16,313,20],[312,4,314,4],[312,5,314,5],[284,9,285,9],[284,10,285,10],[284,11,285,11]]}
[]
["LICENCE Histoire Parcours Enseignement ","version du 26 août 2022"]
["Semestre 1"]
[]
["MAQUETTE",null,null,null,null,null,null,null,null,null,null,null,null,null,null,null,"MCCC"]
["Blocs de connaissances et de compétences (BCC)",null,null,"Unités d'Enseignement (UE)",null,null,"Eléments constitutifs d'UE (ECUE)",null,null,"Indiquer si l'UE ou l'ECUE est\n obligatoire, optionnel ou facultatif\n(menu déroulant)","Volumes horaires prévisionnels (temps étudiants)",null,null,null,null,null,"Poids relatifs du contrôle continu (CC et des examens de fin de semestre (CT), Nature des épreuves, Rattrapage"]
["Intitulés","Crédits","Coefficients","Intitulés","Crédits","Coefficients","Intitulés","Crédits","Coefficients",null,null,null,null,null,null,null,"Session principale ou session 1",null,null,null,null,null,null,null,null,null,null,null,null,"Rattrapage ou session 2"]
[null,null,null,null,null,null,null,null,null,null,"Enseignements",null,null,null,null,null,"Nature des épreuves CC (cocher)",null,null,null,null,"CC\nCoeff. (%)","Nature des épreuves CT (cocher)",null,null,null,null,"CC\nCoeff. (%)","Total session = 100 %","Nature des épreuves de rattrapage (cocher)",null,null,null,null,"Modalité de prise en compte\n\nObligatoire ou Facultatif"]
[null,null,null,null,null,null,null,null,null,null,"CM","TD","TP","Stage-Choisir la durée ici","PROJET","dont enseignements en langue étrangère \n(nombre d'heures)","Ecrit","Pratique (TP)","Oral","Mémoire","Soutenance",null,"Ecrit","Pratique (TP)","Oral","Mémoire","Soutenance",null,null,"Ecrit","Pratique (TP)","Oral","Mémoire","Soutenance"]
[null,null,null,"UE1 : Enseignement fondamentaux de spécialité",14,3,null,null,null,"Obligatoire",null,null,null,null,null,null,null,null,null,null,null,null,null,null,null,null,null,null,{"$f":"V10+AB10","v":0}]
[null,null,null,null,null,null,"Construction des savoirs",6,2,"Obligatoire",24,12,null,null,null,null,null,null,null,null,null,null,"X",null,null,null,null,1,{"$f":"V11+AB11","v":1},"X",null,null,null,null,"Facultatif "]
[null,null,null,null,null,null,"Enseignements de spécialité (dans sa filière d'inscription)",8,3,"Obligatoire",24,36,null,null,null,null,"X",null,null,null,null,0.5,"X",null,null,null,null,0.5,1,"X",null,null,null,null,"Facultatif "]
[null,null,null,"UE2 : Ouvertures aux Sciences Humaines et Sociales",8,2,null,null,null,"Obligatoire",null,null,null,null,null,null,null,null,null,null,null,null,null,null,null,null,null,null,0]
[null,null,null,null,null,null,"Approches thématiques",4,1,"Obligatoire",24,null,null,null,null,null,null,null,null,null,null,null,"X",null,null,null,null,1,1,"X",null,null,null,null,"Facultatif "]
[null,null,null,null,null,null,"2 CM de découverte des SHS à choisir en dehors de sa filière d'inscription:",null,null,"Obligatoire"]
[null,null,null,null,null,null,"Géographie     ",2,1,"Option",12,null,null,null,null,null,null,null,null,null,null,0,"x",null,null,null,null,1,{"$f":"V16+AB16","v":1},"X",null,null,null,null,"Facultatif "]
[null,null,null,null,null,null,"Sciences de l'Education       ",2,1,"Option",12,null,null,null,null,null,null,null,null,null,null,0,"x",null,null,null,null,1,1,"X",null,null,null,null,"Facultatif "]
[null,null,null,null,null,null,"Sociologie  ",2,1,"Option",12,null,null,null,null,null,null,null,null,null,null,0,"x",null,null,null,null,1,1,"X",null,null,null,null,"Facultatif "]
[null,null,null,"UE3 : Outils et méthodes",8,1,null,null,null,"Obligatoire",null,null,null,null,null,null,null,null,null,null,null,null,null,null,null,null,null,null,0]
[null,null,null,null,null,null,"Langue Vivante : Anglais",3,1,"Obligatoire",null,18,null,null,null,null,"X",null,"X",null,null,1,null,null,null,null,null,null,1,"X",null,"X",null,null,"Facultatif "]
[null,null,null,null,null,null,"TICE",1,1,"Obligatoire",null,6,null,null,null,null,null,"X",null,null,null,1,null,null,null,null,null,null,1,null,null,null,"X",null,"Facultatif "]
[null,null,null,null,null,null,"Méthodologie du travail universitaire",3,1,"Obligatoire",null,24,null,null,null,null,"X",null,null,null,null,1,null,null,null,null,null,null,1,"X",null,null,null,null,"Facultatif "]
[null,null,null,null,null,null,"Recherche documentaire",1,1,"Obligatoire",null,6,null,null,null,null,"X",null,null,null,null,1,null,null,null,null,null,null,1,"X",null,null,null,null,"Facultatif "]
[null,null,null,null,null,null,"Modules Réussite étudiante",0,0,"Facultatif",null,8,null,null,null,null,null,null,null,null,null,null,null,null,null,null,null,null,0]
[null,null,null,null,null,null,null,null,null,"choisir dans la liste",null,null,null,null,null,null,null,null,null,null,null,null,null,null,null,null,null,null,0,null,null,null,null,null,"Choisir dans la liste"]
[null,null,null,null,null,null,null,null,null,"choisir dans la liste",null,null,null,null,null,null,null,null,null,null,null,null,null,null,null,null,null,null,0,null,null,null,null,null,"Choisir dans la liste"]
[null,null,null,null,null,null,null,null,null,"choisir dans la liste",null,null,null,null,null,null,null,null,null,null,null,null,null,null,null,null,null,null,0,null,null,null,null,null,"Choisir dans la liste"]
[null,null,null,null,null,null,null,null,null,"choisir dans la liste",null,null,null,null,null,null,null,null,null,null,null,null,null,null,null,null,null,null,0,null,null,null,null,null,"Choisir dans la liste"]
[null,null,null,null,null,null,null,null,null,"choisir dans la liste",null,null,null,null,null,null,null,null,null,null,null,null,null,null,null,null,null,null,0,null,null,null,null,null,"Choisir dans la liste"]
[null,null,null,null,null,null,null,null,null,"choisir dans la liste",null,null,null,null,null,null,null,null,null,null,null,null,null,null,null,null,null,null,0,null,null,null,null,null,"Choisir dans la liste"]
[null,null,null,null,null,null,null,null,null,"choisir dans la liste",null,null,null,null,null,null,null,null,null,null,null,null,null,null,null,null,null,null,0,null,null,null,null,null,"Choisir dans la liste"]
[null,null,null,null,null,null,null,null,null,"choisir dans la liste",null,null,null,null,null,null,null,null,null,null,null,null,null,null,null,null,null,null,0,null,null,null,null,null,"Choisir dans la liste"]
[null,null,null,null,null,null,null,null,null,"choisir dans la liste",null,null,null,null,null,null,null,null,null,null,null,null,null,null,null,null,null,null,0,null,null,null,null,null,"Choisir dans la liste"]
[null,null,null,null,null,null,null,null,null,"choisir dans la liste",null,null,null,null,null,null,null,null,null,null,null,null,null,null,null,null,null,null,0,null,null,null,null,null,"Choisir dans la liste"]
[null,null,null,null,null,null,null,null,null,"choisir dans la liste",null,null,null,null,null,null,null,null,null,null,null,null,null,null,null,null,null,null,0,null,null,null,null,null,"Choisir dans la liste"]
[null,null,null,null,null,null,null,null,null,"choisir dans la liste",null,null,null,null,null,null,null,null,null,null,null,null,null,null,null,null,null,null,0,null,null,null,null,null,"Choisir dans la liste"]
[null,null,null,null,null,null,null,null,null,"choisir dans la liste",null,null,null,null,null,null,null,null,null,null,null,null,null,null,null,null,null,null,0,null,null,null,null,null,"Choisir dans la liste"]
[null,null,null,null,null,null,null,null,null,"choisir dans la liste",null,null,null,null,null,null,null,null,null,null,null,null,null,null,null,null,null,null,0,null,null,null,null,null,"Choisir dans la liste"]
[null,null,null,null,null,null,null,null,null,"choisir dans la liste",null,null,null,null,null,null,null,null,null,null,null,null,null,null,null,null,null,null,0,null,null,null,null,null,"Choisir dans la liste"]
["Total par étudiant",null,"-","-",null,"-","-",null,"-","-",96,110]
[]
[]
[]
[]
["ZONE DE TEXTE / COMMENTAIRES : (ALT+ENTREE pour aller à la ligne)\n\n"]
[]
[]
[]
[]
[]
[]
[]
[]
[]
[]
[]
[]
[]
[]
[]
[]
[]
[]
["Semestre 2"]
[]
["MAQUETTE",null,null,null,null,null,null,null,null,null,null,null,null,null,null,null,"MCCC"]
["Blocs de connaissances et de compétences (BCC)",null,null,"Unités d'Enseignement (UE)",null,null,"Eléments constitutifs d'UE (ECUE)",null,null,"Indiquer si l'UE ou l'ECUE est\n obligatoire, optionnel ou facultatif\n(menu déroulant)","Volumes horaires prévisionnels (temps étudiants)",null,null,null,null,null,"Poids relatifs du contrôle continu (CC et des examens de fin de semestre (CT), Nature des épreuves, Rattrapage"]
["Intitulés","Crédits","Coefficients","Intitulés","Crédits","Coefficients","Intitulés","Crédits","Coefficients",null,null,null,null,null,null,null,"Session principale ou session 1",null,null,null,null,null,null,null,null,null,null,null,null,"Rattrapage ou session 2"]
[null,null,null,null,null,null,null,null,null,null,"Enseignements",null,null,null,null,null,"Nature des épreuves CC (cocher)",null,null,null,null,"CC\nCoeff. (%)","Nature des épreuves CT (cocher)",null,null,null,null,"CC\nCoeff. (%)","Total session = 100 %","Nature des épreuves de rattrapage (cocher)",null,null,null,null,"Modalité de prise en compte\n\nObligatoire ou Facultatif"]
[null,null,null,null,null,null,null,null,null,null,"CM","TD","TP","Stage-Choisir la durée ici","PROJET","dont enseignements en langue étrangère \n(nombre d'heures)","Ecrit","Pratique (TP)","Oral","Mémoire","Soutenance",null,"Ecrit","Pratique (TP)","Oral","Mémoire","Soutenance",null,null,"Ecrit","Pratique (TP)","Oral","Mémoire","Soutenance"]
[null,null,null,"UE1 - Champ disciplinaire ",16,3,null,null,null,null,null,null,null,null,null,null,null,null,null,null,null,null,null,null,null,null,null,null,{"$f":"V71+AB71","v":0},null,null,null,null,null,"Choisir dans la liste"]
[null,null,null,null,null,null,"Histoire ancienne ",4,4,"Obligatoire",18,24,null,null,null,null,"X",null,null,null,null,0.33,"X",null,null,null,null,0.67,{"$f":"V72+AB72","v":1},"X",null,null,null,null,"Facultatif "]
[null,null,null,null,null,null,"Histoire médiévale ",4,4,"Obligatoire",18,24,null,null,null,null,"X",null,null,null,null,0.33,"X",null,null,null,null,0.67,1,"X",null,null,null,null,"Facultatif "]
[null,null,null,null,null,null,"Histoire moderne ",4,4,"Obligatoire",18,24,null,null,null,null,"X",null,null,null,null,0.33,"X",null,null,null,null,0.67,1,"X",null,null,null,null,"Facultatif "]
[null,null,null,null,null,null,"Histoire contemporaine ",4,4,"Obligatoire",18,24,null,null,null,null,"X",null,null,null,null,0.33,"X",null,null,null,null,0.67,1,"X",null,null,null,null,"Facultatif "]
[null,null,null,"UE2 - Ouverture ",9,3,null,null,null,null,null,null,null,null,null,null,null,null,null,null,null,null,null,null,null,null,null,null,0]
[null,null,null,null,null,null,"Géographie ",3,3,"Obligatoire",18,12,null,null,null,null,"X",null,null,null,null,0.33,"X",null,null,null,null,0.67,1,"X",null,null,null,null,"Facultatif "]
[null,null,null,null,null,null,"2 Options au choix sur 4 : \n•  Option 1 : Archéologie et histoire de l’art antiques \n•  Option 2 : Mondes extra européens médiévaux \n•  Option 3 : Histoire moderne \n•  Option 4 : Histoire contemporaine ",6,2,"Optionnel",36,null,null,null,null,null,"X",null,null,null,null,1,null,null,null,null,null,null,1,null,null,"X",null,null,"Facultatif "]
[null,null,null,"UE3 - Outils et méthodes ",5,1,null,null,null,null,null,null,null,null,null,null,null,null,null,null,null,null,null,null,null,null,null,null,0]
[null,null,null,null,null,null,"Langue vivante ",3,3,"Obligatoire",null,18,null,null,null,null,"X",null,null,null,null,1,null,null,null,null,null,null,1,null,null,"X",null,null,"Facultatif "]
[null,null,null,null,null,null,"Méthodologie de l’histoire et du travail universitaire",2,2,"Obligatoire",null,24,null,null,null,null,"X",null,null,null,null,1,null,null,null,null,null,null,1,"X",null,null,null,null,"Facultatif "]
[null,null,null,null,null,null,null,null,null,"choisir dans la liste",null,null,null,null,null,null,null,null,null,null,null,null,null,null,null,null,null,null,0]
[null,null,null,null,null,null,null,null,null,"choisir dans la liste",null,null,null,null,null,null,null,null,null,null,null,null,null,null,null,null,null,null,0]
[null,null,null,null,null,null,null,null,null,"choisir dans la liste",null,null,null,null,null,null,null,null,null,null,null,null,null,null,null,null,null,null,0]
[null,null,null,null,null,null,null,null,null,"choisir dans la liste",null,null,null,null,null,null,null,null,null,null,null,null,null,null,null,null,null,null,0]
[null,null,null,null,null,null,null,null,null,"choisir dans la liste",null,null,null,null,null,null,null,null,null,null,null,null,null,null,null,null,null,null,0]
[null,null,null,null,null,null,null,null,null,"choisir dans la liste",null,null,null,null,null,null,null,null,null,null,null,null,null,null,null,null,null,null,0]
[null,null,null,null,null,null,null,null,null,"choisir dans la liste",null,null,null,null,null,null,null,null,null,null,null,null,null,null,null,null,null,null,0]
[null,null,null,null,null,null,null,null,null,"choisir dans la liste",null,null,null,null,null,null,null,null,null,null,null,null,null,null,null,null,null,null,0]
[null,null,null,null,null,null,null,null,null,"choisir dans la liste",null,null,null,null,null,null,null,null,null,null,null,null,null,null,null,null,null,null,0]
[null,null,null,null,null,null,null,null,null,"choisir dans la liste",null,null,null,null,null,null,null,null,null,null,null,null,null,null,null,null,null,null,0]
[null,null,null,null,null,null,null,null,null,"choisir dans la liste",null,null,null,null,null,null,null,null,null,null,null,null,null,null,null,null,null,null,0]
[null,null,null,null,null,null,null,null,null,"choisir dans la liste",null,null,null,null,null,null,null,null,null,null,null,null,null,null,null,null,null,null,0]
[null,null,null,null,null,null,null,null,null,"choisir dans la liste",null,null,null,null,null,null,null,null,null,null,null,null,null,null,null,null,null,null,0]
[null,null,null,null,null,null,null,null,null,"choisir dans la liste",null,null,null,null,null,null,null,null,null,null,null,null,null,null,null,null,null,null,0]
[null,null,null,null,null,null,null,null,null,"choisir dans la liste",null,null,null,null,null,null,null,null,null,null,null,null,null,null,null,null,null,null,0]
[null,null,null,null,null,null,null,null,null,"choisir dans la liste",null,null,null,null,null,null,null,null,null,null,null,null,null,null,null,null,null,null,0]
[null,null,null,null,null,null,null,null,null,"choisir dans la liste",null,null,null,null,null,null,null,null,null,null,null,null,null,null,null,null,null,null,0]
[null,null,null,null,null,null,null,null,null,"choisir dans la liste",null,null,null,null,null,null,null,null,null,null,null,null,null,null,null,null,null,null,0]
[null,null,null,null,null,null,null,null,null,"choisir dans la liste",null,null,null,null,null,null,null,null,null,null,null,null,null,null,null,null,null,null,0]
["Total par étudiant",null,"-","-",null,"-","-",null,"-","-",126,150]
[]
[]
[]
[]
["ZONE DE TEXTE / COMMENTAIRES : (ALT+ENTREE pour aller à la ligne)\n\n"]
[]
[]
[]
[]
[]
[]
[]
[]
[]
[]
[]
[]
[]
[]
[]
[]
[]
[]
["Semestre 3"]
[]
["MAQUETTE",null,null,null,null,null,null,null,null,null,null,null,null,null,null,null,"MCCC"]
["Blocs de connaissances et de compétences (BCC)",null,null,"Unités d'Enseignement (UE)",null,null,"Eléments constitutifs d'UE (ECUE)",null,null,"Indiquer si l'UE ou l'ECUE est\n obligatoire, optionnel ou facultatif\n(menu déroulant)","Volumes horaires prévisionnels (temps étudiants)",null,null,null,null,null,"Poids relatifs du contrôle continu (CC et des examens de fin de semestre (CT), Nature des épreuves, Rattrapage"]
["Intitulés","Crédits","Coefficients","Intitulés","Crédits","Coefficients","Intitulés","Crédits","Coefficients",null,null,null,null,null,null,null,"Session principale ou session 1",null,null,null,null,null,null,null,null,null,null,null,null,"Rattrapage ou session 2"]
[null,null,null,null,null,null,null,null,null,null,"Enseignements",null,null,null,null,null,"Nature des épreuves CC (cocher)",null,null,null,null,"CC\nCoeff. (%)","Nature des épreuves CT (cocher)",null,null,null,null,"CC\nCoeff. (%)","Total session = 100 %","Nature des épreuves de rattrapage (cocher)",null,null,null,null,"Modalité de prise en compte\n\nObligatoire ou Facultatif"]
[null,null,null,null,null,null,null,null,null,null,"CM","TD","TP","Stage-Choisir la durée ici","PROJET","dont enseignements en langue étrangère \n(nombre d'heures)","Ecrit","Pratique (TP)","Oral","Mémoire","Soutenance",null,"Ecrit","Pratique (TP)","Oral","Mémoire","Soutenance",null,null,"Ecrit","Pratique (TP)","Oral","Mémoire","Soutenance"]
[null,null,null,"UE1 - Champ disciplinaire ",16,3,null,null,null,null,null,null,null,null,null,null,null,null,null,null,null,null,null,null,null,null,null,null,{"$f":"V132+AB132","v":0}]
[null,null,null,null,null,null,"Histoire ancienne ",4,4,"Obligatoire",18,24,null,null,null,null,"X",null,null,null,null,0.33,"X",null,null,null,null,0.67,{"$f":"V133+AB133","v":1},"X",null,null,null,null,"Facultatif "]
[null,null,null,null,null,null,"Histoire médiévale ",4,4,"Obligatoire",18,24,null,null,null,null,"X",null,null,null,null,0.33,"X",null,null,null,null,0.67,1,"X",null,null,null,null,"Facultatif "]
[null,null,null,null,null,null,"Histoire moderne ",4,4,"Obligatoire",18,24,null,null,null,null,"X",null,null,null,null,0.33,"X",null,null,null,null,0.67,1,"X",null,null,null,null,"Facultatif "]
[null,null,null,null,null,null,"Histoire contemporaine ",4,4,"Obligatoire",18,24,null,null,null,null,"X",null,null,null,null,0.33,"X",null,null,null,null,0.67,1,"X",null,null,null,null,"Facultatif "]
[null,null,null,"UE2 - Ouverture ",9,2,null,null,null,null,null,null,null,null,null,null,null,null,null,null,null,null,null,null,null,null,null,null,0]
[null,null,null,null,null,null,"Géohistoire",3,3,"Obligatoire",12,12,null,null,null,null,"X",null,null,null,null,0.33,"X",null,null,null,null,0.67,1,"X",null,null,null,null,"Facultatif "]
[null,null,null,null,null,null,"2 Options au choix sur 5 : \n•  Option 1 : Droits antiques \n•  Option 2 : Archéologie et histoire de l’art médiévales \n•  Option 3 : Histoire politique (moderne) \n•  Option 4 : Histoire quantitative, éco et sociale \n(contemporaine) \n•  Option 5 : Grec ancien pour Historien ",4,3,"Optionnel",36,null,null,null,null,null,"X",null,null,null,null,1,null,null,null,null,null,null,1,null,null,"X",null,null,"Facultatif "]
[null,null,null,null,null,null,"UEOS",2,1,"Obligatoire",null,20,null,null,null,null,"X",null,null,null,null,1,null,null,null,null,null,null,1,"X",null,null,null,null,"Facultatif "]
[null,null,null,"UE3 - Outils et méthodes ",5,1,null,null,null,null,null,null,null,null,null,null,null,null,null,null,null,null,null,null,null,null,null,null,0]
[null,null,null,null,null,null,"PPP ",2,2,"Obligatoire",null,20,null,null,null,null,"X",null,null,null,null,1,null,null,null,null,null,null,1,null,null,"X",null,null,"Facultatif "]
[null,null,null,null,null,null,"Langue vivante ",3,2,"Obligatoire",null,18,null,null,null,null,"X",null,null,null,null,1,null,null,null,null,null,null,1,null,null,"X",null,null,"Facultatif "]
[null,null,null,null,null,null,null,null,null,"choisir dans la liste",null,null,null,null,null,null,null,null,null,null,null,null,null,null,null,null,null,null,0]
[null,null,null,null,null,null,null,null,null,"choisir dans la liste",null,null,null,null,null,null,null,null,null,null,null,null,null,null,null,null,null,null,0]
[null,null,null,null,null,null,null,null,null,"choisir dans la liste",null,null,null,null,null,null,null,null,null,null,null,null,null,null,null,null,null,null,0]
[null,null,null,null,null,null,null,null,null,"choisir dans la liste",null,null,null,null,null,null,null,null,null,null,null,null,null,null,null,null,null,null,0]
[null,null,null,null,null,null,null,null,null,"choisir dans la liste",null,null,null,null,null,null,null,null,null,null,null,null,null,null,null,null,null,null,0]
[null,null,null,null,null,null,null,null,null,"choisir dans la liste",null,null,null,null,null,null,null,null,null,null,null,null,null,null,null,null,null,null,0]
[null,null,null,null,null,null,null,null,null,"choisir dans la liste",null,null,null,null,null,null,null,null,null,null,null,null,null,null,null,null,null,null,0]
[null,null,null,null,null,null,null,null,null,"choisir dans la liste",null,null,null,null,null,null,null,null,null,null,null,null,null,null,null,null,null,null,0]
[null,null,null,null,null,null,null,null,null,"choisir dans la liste",null,null,null,null,null,null,null,null,null,null,null,null,null,null,null,null,null,null,0]
[null,null,null,null,null,null,null,null,null,"choisir dans la liste",null,null,null,null,null,null,null,null,null,null,null,null,null,null,null,null,null,null,0]
[null,null,null,null,null,null,null,null,null,"choisir dans la liste",null,null,null,null,null,null,null,null,null,null,null,null,null,null,null,null,null,null,0]
[null,null,null,null,null,null,null,null,null,"choisir dans la liste",null,null,null,null,null,null,null,null,null,null,null,null,null,null,null,null,null,null,0]
[null,null,null,null,null,null,null,null,null,"choisir dans la liste",null,null,null,null,null,null,null,null,null,null,null,null,null,null,null,null,null,null,0]
[null,null,null,null,null,null,null,null,null,"choisir dans la liste",null,null,null,null,null,null,null,null,null,null,null,null,null,null,null,null,null,null,0]
[null,null,null,null,null,null,null,null,null,"choisir dans la liste",null,null,null,null,null,null,null,null,null,null,null,null,null,null,null,null,null,null,0]
[null,null,null,null,null,null,null,null,null,"choisir dans la liste",null,null,null,null,null,null,null,null,null,null,null,null,null,null,null,null,null,null,0]
[null,null,null,null,null,null,null,null,null,"choisir dans la liste",null,null,null,null,null,null,null,null,null,null,null,null,null,null,null,null,null,null,0]
[null,null,null,null,null,null,null,null,null,"choisir dans la liste",null,null,null,null,null,null,null,null,null,null,null,null,null,null,null,null,null,null,0]
["Total par étudiant",null,"-","-",null,"-","-",null,"-","-",120,166]
[]
[]
[]
[]
["ZONE DE TEXTE / COMMENTAIRES : (ALT+ENTREE pour aller à la ligne)\n\n"]
[]
[]
[]
[]
[]
[]
[]
[]
[]
[]
[]
[]
[]
[]
[]
[]
[]
[]
["Semestre 4"]
[]
["MAQUETTE",null,null,null,null,null,null,null,null,null,null,null,null,null,null,null,"MCCC"]
["Blocs de connaissances et de compétences (BCC)",null,null,"Unités d'Enseignement (UE)",null,null,"Eléments constitutifs d'UE (ECUE)",null,null,"Indiquer si l'UE ou l'ECUE est\n obligatoire, optionnel ou facultatif\n(menu déroulant)","Volumes horaires prévisionnels (temps étudiants)",null,null,null,null,null,"Poids relatifs du contrôle continu (CC et des examens de fin de semestre (CT), Nature des épreuves, Rattrapage"]
["Intitulés","Crédits","Coefficients","Intitulés","Crédits","Coefficients","Intitulés","Crédits","Coefficients",null,null,null,null,null,null,null,"Session principale ou session 1",null,null,null,null,null,null,null,null,null,null,null,null,"Rattrapage ou session 2"]
[null,null,null,null,null,null,null,null,null,null,"Enseignements",null,null,null,null,null,"Nature des épreuves CC (cocher)",null,null,null,null,"CC\nCoeff. (%)","Nature des épreuves CT (cocher)",null,null,null,null,"CC\nCoeff. (%)","Total session = 100 %","Nature des épreuves de rattrapage (cocher)",null,null,null,null,"Modalité de prise en compte\n\nObligatoire ou Facultatif"]
[null,null,null,null,null,null,null,null,null,null,"CM","TD","TP","Stage-Choisir la durée ici","PROJET","dont enseignements en langue étrangère \n(nombre d'heures)","Ecrit","Pratique (TP)","Oral","Mémoire","Soutenance",null,"Ecrit","Pratique (TP)","Oral","Mémoire","Soutenance",null,null,"Ecrit","Pratique (TP)","Oral","Mémoire","Soutenance"]
[null,null,null,"UE1 - Champ disciplinaire ",16,3,null,null,null,null,null,null,null,null,null,null,null,null,null,null,null,null,null,null,null,null,null,null,{"$f":"V193+AB193","v":0}]
[null,null,null,null,null,null,"Histoire ancienne ",4,4,"Obligatoire",18,18,null,null,null,null,"X",null,null,null,null,0.33,"X",null,null,null,null,0.67,{"$f":"V194+AB194","v":1},"X",null,null,null,null,"Facultatif "]
[null,null,null,null,null,null,"Histoire médiévale ",4,4,"Obligatoire",18,18,null,null,null,null,"X",null,null,null,null,0.33,"X",null,null,null,null,0.67,1,"X",null,null,null,null,"Facultatif "]
[null,null,null,null,null,null,"Histoire moderne ",4,4,"Obligatoire",18,18,null,null,null,null,"X",null,null,null,null,0.33,"X",null,null,null,null,0.67,1,"X",null,null,null,null,"Facultatif "]
[null,null,null,null,null,null,"Histoire contemporaine ",4,4,"Obligatoire",18,18,null,null,null,null,"X",null,null,null,null,0.33,"X",null,null,null,null,0.67,1,"X",null,null,null,null,"Facultatif "]
[null,null,null,"UE2 - Ouverture ",9,2,null,null,null,null,null,null,null,null,null,null,null,null,null,null,null,null,null,null,null,null,null,null,0]
[null,null,null,null,null,null,"Géographie : paysage et archéologie      ",3,3,"Obligatoire",12,12,null,null,null,null,null,null,null,null,null,null,"X",null,null,null,null,1,1,null,null,"X",null,null,"Facultatif "]
[null,null,null,null,null,null,"2 Options au choix sur 4 : \n•  Option 1 : Latin 1 \n•  Option 2 : Paléographie latine et française\n•  Option 3 : histoire moderne\n•  Option 4 : Histoire de l’art (contemporaine) ",6,3,"Optionnel",36,null,null,null,null,null,"X",null,null,null,null,1,null,null,null,null,null,null,1,null,null,"X",null,null,"Facultatif "]
[null,null,null,"UE3 - Outils et méthodes ",5,1,null,null,null,null,null,null,null,null,null,null,null,null,null,null,null,null,null,null,null,null,null,null,0]
[null,null,null,null,null,null,"Langue vivante ",3,3,"Obligatoire",null,18,null,null,null,null,"X",null,null,null,null,1,null,null,null,null,null,null,1,null,null,"X",null,null,"Facultatif "]
[null,null,null,null,null,null,"UEOS ",2,2,"Obligatoire",null,20,null,null,null,null,"X",null,null,null,null,1,null,null,null,null,null,null,1,null,null,"X",null,null,"Facultatif "]
[null,null,null,null,null,null,null,null,null,"choisir dans la liste",null,null,null,null,null,null,null,null,null,null,null,null,null,null,null,null,null,null,0]
[null,null,null,null,null,null,null,null,null,"choisir dans la liste",null,null,null,null,null,null,null,null,null,null,null,null,null,null,null,null,null,null,0]
[null,null,null,null,null,null,null,null,null,"choisir dans la liste",null,null,null,null,null,null,null,null,null,null,null,null,null,null,null,null,null,null,0]
[null,null,null,null,null,null,null,null,null,"choisir dans la liste",null,null,null,null,null,null,null,null,null,null,null,null,null,null,null,null,null,null,0]
[null,null,null,null,null,null,null,null,null,"choisir dans la liste",null,null,null,null,null,null,null,null,null,null,null,null,null,null,null,null,null,null,0]
[null,null,null,null,null,null,null,null,null,"choisir dans la liste",null,null,null,null,null,null,null,null,null,null,null,null,null,null,null,null,null,null,0]
[null,null,null,null,null,null,null,null,null,"choisir dans la liste",null,null,null,null,null,null,null,null,null,null,null,null,null,null,null,null,null,null,0]
[null,null,null,null,null,null,null,null,null,"choisir dans la liste",null,null,null,null,null,null,null,null,null,null,null,null,null,null,null,null,null,null,0]
[null,null,null,null,null,null,null,null,null,"choisir dans la liste",null,null,null,null,null,null,null,null,null,null,null,null,null,null,null,null,null,null,0]
[null,null,null,null,null,null,null,null,null,"choisir dans la liste",null,null,null,null,null,null,null,null,null,null,null,null,null,null,null,null,null,null,0]
[null,null,null,null,null,null,null,null,null,"choisir dans la liste",null,null,null,null,null,null,null,null,null,null,null,null,null,null,null,null,null,null,0]
[null,null,null,null,null,null,null,null,null,"choisir dans la liste",null,null,null,null,null,null,null,null,null,null,null,null,null,null,null,null,null,null,0]
[null,null,null,null,null,null,null,null,null,"choisir dans la liste",null,null,null,null,null,null,null,null,null,null,null,null,null,null,null,null,null,null,0]
[null,null,null,null,null,null,null,null,null,"choisir dans la liste",null,null,null,null,null,null,null,null,null,null,null,null,null,null,null,null,null,null,0]
[null,null,null,null,null,null,null,null,null,"choisir dans la liste",null,null,null,null,null,null,null,null,null,null,null,null,null,null,null,null,null,null,0]
[null,null,null,null,null,null,null,null,null,"choisir dans la liste",null,null,null,null,null,null,null,null,null,null,null,null,null,null,null,null,null,null,0]
[null,null,null,null,null,null,null,null,null,"choisir dans la liste",null,null,null,null,null,null,null,null,null,null,null,null,null,null,null,null,null,null,0]
[null,null,null,null,null,null,null,null,null,"choisir dans la liste",null,null,null,null,null,null,null,null,null,null,null,null,null,null,null,null,null,null,0]
[null,null,null,null,null,null,null,null,null,"choisir dans la liste",null,null,null,null,null,null,null,null,null,null,null,null,null,null,null,null,null,null,0]
["Total par étudiant",null,"-","-",null,"-","-",null,"-","-",120,146]
[]
[]
[]
[]
["ZONE DE TEXTE / COMMENTAIRES : (ALT+ENTREE pour aller à la ligne)\n\n"]
[]
[]
[]
[]
[]
[]
[]
[]
[]
[]
[]
[]
[]
[]
[]
[]
[]
[]
["Semestre 5"]
[]
["MAQUETTE",null,null,null,null,null,null,null,null,null,null,null,null,null,null,null,"MCCC"]
["Blocs de connaissances et de compétences (BCC)",null,null,"Unités d'Enseignement (UE)",null,null,"Eléments constitutifs d'UE (ECUE)",null,null,"Indiquer si l'UE ou l'ECUE est\n obligatoire, optionnel ou facultatif\n(menu déroulant)","Volumes horaires prévisionnels (temps étudiants)",null,null,null,null,null,"Poids relatifs du contrôle continu (CC et des examens de fin de semestre (CT), Nature des épreuves, Rattrapage"]
["Intitulés","Crédits","Coefficients","Intitulés","Crédits","Coefficients","Intitulés","Crédits","Coefficients",null,null,null,null,null,null,null,"Session principale ou session 1",null,null,null,null,null,null,null,null,null,null,null,null,"Rattrapage ou session 2"]
[null,null,null,null,null,null,null,null,null,null,"Enseignements",null,null,null,null,null,"Nature des épreuves CC (cocher)",null,null,null,null,"CC\nCoeff. (%)","Nature des épreuves CT (cocher)",null,null,null,null,"CT\nCoeff. (%)","Total session = 100 %","Nature des épreuves de rattrapage (cocher)",null,null,null,null,"Modalité de prise en compte\n\nObligatoire ou Facultatif"]
[null,null,null,null,null,null,null,null,null,null,"CM","TD","TP","Stage-Choisir la durée ici","PROJET","dont enseignements en langue étrangère \n(nombre d'heures)","Ecrit","Pratique (TP)","Oral","Mémoire","Soutenance",null,"Ecrit","Pratique (TP)","Oral","Mémoire","Soutenance",null,null,"Ecrit","Pratique (TP)","Oral","Mémoire","Soutenance"]
[null,null,null,"UE1 - Champ disciplinaire ",16,3,null,null,null,null,null,null,null,null,null,null,null,null,null,null,null,null,null,null,null,null,null,null,{"$f":"V254+AB254","v":0}]
[null,null,null,null,null,null,"Histoire ancienne ",4,4,"Obligatoire",18,18,null,null,null,null,"X",null,null,null,null,0.33,"X",null,null,null,null,0.67,{"$f":"V255+AB255","v":1},"X",null,null,null,null,"Facultatif "]
[null,null,null,null,null,null,"Histoire médiévale ",4,4,"Obligatoire",18,18,null,null,null,null,"X",null,null,null,null,0.33,"X",null,null,null,null,0.67,1,"X",null,null,null,null,"Facultatif "]
[null,null,null,null,null,null,"Histoire moderne ",4,4,"Obligatoire",18,18,null,null,null,null,"X",null,null,null,null,0.33,"X",null,null,null,null,0.67,1,"X",null,null,null,null,"Facultatif "]
[null,null,null,null,null,null,"Histoire contemporaine ",4,4,"Obligatoire",18,18,null,null,null,null,"X",null,null,null,null,0.33,"X",null,null,null,null,0.67,1,"X",null,null,null,null,"Facultatif "]
[null,null,null,"UE2 - Parcours 1 : Métiers de l’Enseignement",6,1,null,null,null,null,null,null,null,null,null,null,null,null,null,null,null,null,null,null,null,null,null,null,0]
[null,null,null,null,null,null,"Histoire (Mutualisé avec Géographie et parcours 2 et 3)",2,2,"Obligatoire",12,12,null,null,null,null,"X",null,null,null,null,1,null,null,null,null,null,null,1,null,null,"X",null,null,"Facultatif "]
[null,null,null,null,null,null,"Géohistoire (mutualisé avec Géographie et parcours 3) ",2,2,"Obligatoire",18,12,null,null,null,null,"X",null,null,null,null,1,null,null,null,null,null,null,1,null,null,"X",null,null,"Facultatif "]
[null,null,null,null,null,null,"Didactique de la géographie  (mutualisé avec Géographie)",2,2,"Obligatoire",12,12,null,null,null,null,"X",null,null,null,null,1,null,null,null,null,null,null,1,null,null,"X",null,null,"Facultatif "]
[null,null,null,"UE3 - Ouverture et outils ",8,2,null,null,null,null,null,null,null,null,null,null,null,null,null,null,null,null,null,null,null,null,null,null,0]
[null,null,null,null,null,null,"Langue vivante ",2,3,"Obligatoire",null,18,null,null,null,null,"X",null,null,null,null,1,null,null,null,null,null,null,1,null,null,"X",null,null,"Facultatif "]
[null,null,null,null,null,null,"2 Options au choix sur 5 : \n•  Option 1 : Mondes extra européens antiques \n•  Option 2 : Latin 2 \n•  Option 3 : Histoire de l’art (moderne)\n•  Option 4 : Forces et faiblesse des Amériques et de l’Asie (Histoire contemporaine) \n•  Option 5 : PPP (CAP AVENIR) ",4,3,"Optionnel",36,null,null,null,null,null,"X",null,null,null,null,1,null,null,null,null,null,null,1,null,null,"X",null,null,"Facultatif "]
[null,null,null,null,null,null,"UEOS",2,3,"Obligatoire",null,20,null,null,null,null,"X",null,null,null,null,1,null,null,null,null,null,null,1,null,null,"X",null,null,"Facultatif "]
[null,null,null,null,null,null,null,null,null,null,null,null,null,null,null,null,null,null,null,null,null,null,null,null,null,null,null,null,0]
[null,null,null,null,null,null,null,null,null,null,null,null,null,null,null,null,null,null,null,null,null,null,null,null,null,null,null,null,0]
[null,null,null,null,null,null,null,null,null,null,null,null,null,null,null,null,null,null,null,null,null,null,null,null,null,null,null,null,0]
[null,null,null,null,null,null,null,null,null,null,null,null,null,null,null,null,null,null,null,null,null,null,null,null,null,null,null,null,0]
[null,null,null,null,null,null,null,null,null,null,null,null,null,null,null,null,null,null,null,null,null,null,null,null,null,null,null,null,0]
[null,null,null,null,null,null,null,null,null,null,null,null,null,null,null,null,null,null,null,null,null,null,null,null,null,null,null,null,0]
[null,null,null,null,null,null,null,null,null,null,null,null,null,null,null,null,null,null,null,null,null,null,null,null,null,null,null,null,0]
[null,null,null,null,null,null,null,null,null,null,null,null,null,null,null,null,null,null,null,null,null,null,null,null,null,null,null,null,0]
[null,null,null,null,null,null,null,null,null,null,null,null,null,null,null,null,null,null,null,null,null,null,null,null,null,null,null,null,0]
[null,null,null,null,null,null,null,null,null,null,null,null,null,null,null,null,null,null,null,null,null,null,null,null,null,null,null,null,0]
[null,null,null,null,null,null,null,null,null,null,null,null,null,null,null,null,null,null,null,null,null,null,null,null,null,null,null,null,0]
[null,null,null,null,null,null,null,null,null,null,null,null,null,null,null,null,null,null,null,null,null,null,null,null,null,null,null,null,0]
[null,null,null,null,null,null,null,null,null,null,null,null,null,null,null,null,null,null,null,null,null,null,null,null,null,null,null,null,0]
[null,null,null,null,null,null,null,null,null,null,null,null,null,null,null,null,null,null,null,null,null,null,null,null,null,null,null,null,0]
[null,null,null,null,null,null,null,null,null,null,null,null,null,null,null,null,null,null,null,null,null,null,null,null,null,null,null,null,0]
[null,null,null,null,null,null,null,null,null,null,null,null,null,null,null,null,null,null,null,null,null,null,null,null,null,null,null,null,0]
[null,null,null,null,null,null,null,null,null,null,null,null,null,null,null,null,null,null,null,null,null,null,null,null,null,null,null,null,0]
[null,null,null,null,null,null,null,null,null,null,null,null,null,null,null,null,null,null,null,null,null,null,null,null,null,null,null,null,0]
["Total par étudiant",null,"-","-",null,"-","-",null,"-","-",138,158]
[]
[]
[]
[]
["ZONE DE TEXTE / COMMENTAIRES : (ALT+ENTREE pour aller à la ligne)\n\n"]
[]
[]
[]
[]
[]
[]
[]
[]
[]
[]
[]
[]
[]
[]
[]
[]
[]
[]
["Semestre 6"]
[]
["MAQUETTE",null,null,null,null,null,null,null,null,null,null,null,null,null,null,null,"MCCC"]
["Blocs de connaissances et de compétences (BCC)",null,null,"Unités d'Enseignement (UE)",null,null,"Eléments constitutifs d'UE (ECUE)",null,null,"Indiquer si l'UE ou l'ECUE est\n obligatoire, optionnel ou facultatif\n(menu déroulant)","Volumes horaires prévisionnels (temps étudiants)",null,null,null,null,null,"Poids relatifs du contrôle continu (CC et des examens de fin de semestre (CT), Nature des épreuves, Rattrapage"]
["Intitulés","Crédits","Coefficients","Intitulés","Crédits","Coefficients","Intitulés","Crédits","Coefficients",null,null,null,null,null,null,null,"Session principale ou session 1",null,null,null,null,null,null,null,null,null,null,null,null,"Rattrapage ou session 2"]
[null,null,null,null,null,null,null,null,null,null,"Enseignements",null,null,null,null,null,"Nature des épreuves CC (cocher)",null,null,null,null,"CC\nCoeff. (%)","Nature des épreuves CT (cocher)",null,null,null,null,"CC\nCoeff. (%)","Total session = 100 %","Nature des épreuves de rattrapage (cocher)",null,null,null,null,"Modalité de prise en compte\n\nObligatoire ou Facultatif"]
[null,null,null,null,null,null,null,null,null,null,"CM","TD","TP","Stage-Choisir la durée ici","PROJET","dont enseignements en langue étrangère \n(nombre d'heures)","Ecrit","Pratique (TP)","Oral","Mémoire","Soutenance",null,"Ecrit","Pratique (TP)","Oral","Mémoire","Soutenance",null,null,"Ecrit","Pratique (TP)","Oral","Mémoire","Soutenance"]
[null,null,null,"UE1 - Champ disciplinaire ",12,2,null,null,null,null,null,null,null,null,null,null,null,null,null,null,null,null,null,null,null,null,null,null,{"$f":"V316+AB316","v":0}]
[null,null,null,null,null,null,"Histoire ancienne ",3,3,"Obligatoire",18,18,null,null,null,null,"X",null,null,null,null,0.33,"X",null,null,null,null,0.67,{"$f":"V317+AB317","v":1},"X",null,null,null,null,"Facultatif "]
[null,null,null,null,null,null,"Histoire médiévale ",3,3,"Obligatoire",18,18,null,null,null,null,"X",null,null,null,null,0.33,"X",null,null,null,null,0.67,1,"X",null,null,null,null,"Facultatif "]
[null,null,null,null,null,null,"Histoire moderne ",3,3,"Obligatoire",18,18,null,null,null,null,"X",null,null,null,null,0.33,"X",null,null,null,null,0.67,1,"X",null,null,null,null,"Facultatif "]
[null,null,null,null,null,null,"Histoire contemporaine ",3,3,"Obligatoire",18,18,null,null,null,null,"X",null,null,null,null,0.33,"X",null,null,null,null,0.67,1,"X",null,null,null,null,"Facultatif "]
[null,null,null,"UE2 - Parcours 1 : Métiers de l’Enseignement ",6,1,null,null,null,null,null,null,null,null,null,null,null,null,null,null,null,null,null,null,null,null,null,null,0]
[null,null,null,null,null,null,"Didactique de l’Histoire ",3,3,"Obligatoire",12,12,null,null,null,null,"X",null,null,null,null,1,null,null,null,null,null,null,1,null,null,"X",null,null,"Facultatif "]
[null,null,null,null,null,null,"Préparation de l’oral ",3,3,"Obligatoire",6,18,null,null,null,null,"X",null,null,null,null,1,null,null,null,null,null,null,1,null,null,"X",null,null,"Facultatif "]
[null,null,null,"UE3 - Ouverture et outils ",12,2,null,null,null,null,null,null,null,null,null,null,null,null,null,null,null,null,null,null,null,null,null,null,0]
[null,null,null,null,null,null,"Langue vivante ",3,3,"Obligatoire",null,18,null,null,null,null,"X",null,null,null,null,1,null,null,null,null,null,null,1,null,null,"X",null,null,"Facultatif "]
[null,null,null,null,null,null,"2 Options au choix sur 5 : \n•  Option 1 : Religion et politique dans les mondes antiques \n•  Option 2 : Paléographie latine et française\n•  Option 3 : Mondes extra européens (moderne) \n•  Option 4 : Mondes extra européens (contemporaine) \n•  Option 5 : PPP (préparation à la poursuite d’études et à l’insertion professionnelle) ",6,3,"Optionnel",36,null,null,null,null,null,"X",null,null,null,null,1,null,null,null,null,null,null,1,null,null,"X",null,null,"Facultatif "]
[null,null,null,null,null,null,"UEOS ",3,3,"Obligatoire",null,20,null,null,null,null,"X",null,null,null,null,1,null,null,null,null,null,null,1,null,null,"X",null,null,"Facultatif "]
[null,null,null,null,null,null,null,null,null,null,null,null,null,null,null,null,null,null,null,null,null,null,null,null,null,null,null,null,0]
[null,null,null,null,null,null,null,null,null,null,null,null,null,null,null,null,null,null,null,null,null,null,null,null,null,null,null,null,0]
[null,null,null,null,null,null,null,null,null,null,null,null,null,null,null,null,null,null,null,null,null,null,null,null,null,null,null,null,0]
[null,null,null,null,null,null,null,null,null,null,null,null,null,null,null,null,null,null,null,null,null,null,null,null,null,null,null,null,0]
[null,null,null,null,null,null,null,null,null,null,null,null,null,null,null,null,null,null,null,null,null,null,null,null,null,null,null,null,0]
[null,null,null,null,null,null,null,null,null,null,null,null,null,null,null,null,null,null,null,null,null,null,null,null,null,null,null,null,0]
[null,null,null,null,null,null,null,null,null,null,null,null,null,null,null,null,null,null,null,null,null,null,null,null,null,null,null,null,0]
[null,null,null,null,null,null,null,null,null,null,null,null,null,null,null,null,null,null,null,null,null,null,null,null,null,null,null,null,0]
[null,null,null,null,null,null,null,null,null,null,null,null,null,null,null,null,null,null,null,null,null,null,null,null,null,null,null,null,0]
[null,null,null,null,null,null,null,null,null,null,null,null,null,null,null,null,null,null,null,null,null,null,null,null,null,null,null,null,0]
[null,null,null,null,null,null,null,null,null,null,null,null,null,null,null,null,null,null,null,null,null,null,null,null,null,null,null,null,0]
[null,null,null,null,null,null,null,null,null,null,null,null,null,null,null,null,null,null,null,null,null,null,null,null,null,null,null,null,0]
[null,null,null,null,null,null,null,null,null,null,null,null,null,null,null,null,null,null,null,null,null,null,null,null,null,null,null,null,0]
[null,null,null,null,null,null,null,null,null,null,null,null,null,null,null,null,null,null,null,null,null,null,null,null,null,null,null,null,0]
[null,null,null,null,null,null,null,null,null,null,null,null,null,null,null,null,null,null,null,null,null,null,null,null,null,null,null,null,0]
[null,null,null,null,null,null,null,null,null,null,null,null,null,null,null,null,null,null,null,null,null,null,null,null,null,null,null,null,0]
[null,null,null,null,null,null,null,null,null,null,null,null,null,null,null,null,null,null,null,null,null,null,null,null,null,null,null,null,0]
[null,null,null,null,null,null,null,null,null,null,null,null,null,null,null,null,null,null,null,null,null,null,null,null,null,null,null,null,0]
["Total par étudiant",null,"-","-",null,"-","-",null,"-","-",126,164]
[]
[]
[]
[]
["ZONE DE TEXTE / COMMENTAIRES : (ALT+ENTREE pour aller à la ligne)\n\n"]

{"sheet":"extraction base OF","index":1,"n_rows":68,"n_cols":16,"rows_kept":68,"cut":false,"hidden":true,"merged":[]}
["PERIODE  D'ACCREDITATION","DIPLÔME","MENTION / INTITULE","PARCOURS","STATUT  DE LA FORMATION POUR LES IA  DE L'ANNE EN COURS","NUMERO  D'ACCREDITATION","CO-ACCREDITATION","NUMERO RNCP","DATE 1ère PRESENTATION  CFVU","MAQUETTE INITIALE","DATE  DERNIERE PRESENTATION  CFVU","MAQUETTE DERNIERE VERSION","FORMATION  INITIALE OU CONTINUE","CONTRAT  D'APPRENTISSAGE","CONTRAT PRO","STAGE"]
["2016-2025","licence","arts du spectacle","art dramatique (Comédie)","ouvert","20141576","Comédie de Saint-Etienne, ENS Lyon","24471","08/04/2022","MAQUETTES 2022-2025\\ALL LICENCE arts du spectacle parcours art dramatique.xlsm","-","non concerné","initiale","non","non","non"]
["2016-2025","licence","arts plastiques","arts plastiques","ouvert","20141577","-","24470","08/04/2022","MAQUETTES 2022-2025\\ALL LICENCE arts plastiques.xlsm","-","non concerné","initiale","non","non","non"]
["2022-2025","licence","langues étrangères appliquées","anglais, allemand","ouverture prévue","20141579","-","25169","08/04/2022","MAQUETTES 2022-2025\\ALL LICENCE langues étrangères appliquées parcours anglais-allemand.xlsm","-","non concerné","initiale","non","non","non"]
["2022-2025","licence","langues étrangères appliquées","anglais, allemand, osez l'Allemand","ouverture prévue","20141579","-","25169","08/04/2022","MAQUETTES 2022-2025\\ALL LICENCE langues étrangères appliquées parcours anglais-allemand tremplin.xlsm","-","non concerné","initiale","non","non","non"]
["2022-2025","licence","langues étrangères appliquées","anglais, espagnol","ouverture prévue","20141579","-","25169","08/04/2022","MAQUETTES 2022-2025\\ALL LICENCE langues étrangères appliquées parcours anglais-espagnol.xlsm","-","non concerné","initiale","non","non","oui"]
["2016-2025","licence","langues étrangères appliquées","anglais, italien","ouvert","20141579","-","25169","08/04/2022","MAQUETTES 2022-2025\\ALL LICENCE langues étrangères appliquées parcours anglais-italien.xlsm","-","non concerné","initiale","non","non","oui"]
["2016-2025","licence","langues étrangères appliquées","anglais, portugais","ouvert","20141579","-","25169","08/04/2022","MAQUETTES 2022-2025\\ALL LICENCE langues étrangères appliquées parcours anglais-portugais.xlsm","-","non concerné","initiale","non","non","oui"]
["2016-2025","licence","langues, littératures et civilisations étrangères et régionales","anglais","ouvert","20141580","-","24508","08/04/2022","MAQUETTES 2022-2025\\ALL LICENCE langues littératures et civilisations étrangères et régionales parcours anglais.xlsm","-","non concerné","initiale","non","non","oui"]
["2016-2025","licence","langues, littératures et civilisations étrangères et régionales","espagnol","ouvert","20141580","-","24508","08/04/2022","MAQUETTES 2022-2025\\ALL LICENCE langues littératures et civilisations étrangères et régionales parcours espagnol.xlsm","-","non concerné","initiale","non","non","oui"]
["2022-2025","licence","lettres","langues, littérature et civilisations de l'antiquité","ouverture prévue","20141581","Mutualisation avec Lyon 2 et Lyon 3","24481","08/04/2022","MAQUETTES 2022-2025\\ALL LICENCE lettres parcours langues littératures et civilisations de l'antiquité.xlsm","-","non concerné","initiale","non","non","non"]
["2016-2025","licence","lettres","lettres et arts","ouvert","20141581","-","24481","08/04/2022","MAQUETTES 2022-2025\\ALL LICENCE lettres parcours lettres et arts.xlsm","-","non concerné","initiale","non","non","oui"]
["2016-2025","licence","lettres","lettres modernes","ouvert","20141581","-","24481","08/04/2022","MAQUETTES 2022-2025\\ALL LICENCE lettres parcours lettres modernes.xlsm","-","non concerné","initiale","non","non","oui"]
["2022-2025","licence","lettres","lettres tremplin","ouverture prévue","20141581","-","24481","08/04/2022","MAQUETTES 2022-2025\\ALL LICENCE lettres parcours lettres tremplin.xlsm","-","non concerné","initiale","non","non","oui"]
["2016-2025","licence","musicologie","musique et musicologie","ouvert","20141582","-","24480","08/004/2022","MAQUETTES 2022-2025\\ALL LICENCE musicologie parcours musique et musicologie.xlsm","-","non concerné","initiale","non","non","oui"]
["2022-2025","licence","musicologie","musique et musicologie tremplin","ouverture prévue","20141582","-","24480","08/04/2022","MAQUETTES 2022-2025\\ALL LICENCE musicologie parcours parcours musique et musicologie tremplin.xlsm","-","non concerné","initiale","non","non","oui"]
["2016-2025","licence","administration publique","-","ouvert","20141583","-","24420","08/04/2022","MAQUETTES 2022-2025\\DROIT LICENCE administration publique.xlsm","-","non concerné","initiale","non","non","oui"]
["2016-2025","licence","droit","accès santé","ouvert","20141578","-","24423","15/05/2020","MAQUETTES INITIALES\\MI_DROIT_LICENCE_droit_option accès santé_15.05.2020.xlsx","17/09/2021","MAQUETTES MODIFIEES\\MM_DROIT_LICENCE_LAS_DROIT_17.09.2021.xlsx","initiale","non","non","oui"]
["2016-2025","licence","droit","droit","ouvert","20141578","-","24423","08/04/2022","MAQUETTES 2022-2025\\DROIT LICENCE droit.xlsm","-","non concerné","initiale","non","non","oui"]
["2022-2025","licence","droit","droit et santé","ouverture prévue","20141578","-","24423","08/04/2022","MAQUETTES 2022-2025\\DROIT LICENCE droit parcours droit et santé.xlsm","-","non concerné","initiale","non","non","oui"]
["2022-2025","licence","économie","accès santé","ouverture prévue",null,null,"24424","08/04/2022","MAQUETTES 2022-2025\\EE LICENCE économie.xlsm","-","non concerné","initiale","non","non"]
["2022-2025","licence","économie","économie","ouverture prévue",null,"-","24424","08/04/2022","MAQUETTES 2022-2025\\EE LICENCE économie.xlsm","-","non concerné","initiale","non","non","oui"]
["2022-2025","licence","économie","international track","ouverture prévue",null,"-","24424","08/04/2022","MAQUETTES 2022-2025\\EE LICENCE économie parcours international track.xlsm","-","non concerné","initiale","non","non","non"]
["2016-2025","licence","chimie","-","ouvert","20141592","-","24528","08/04/2022","MAQUETTES 2022-2025\\FST LICENCE chimie BGC.xlsm","-","non concerné","initiale","non","non","non"]
["2022-2025","licence","chimie","accès santé","ouverture prévue","20141592","-","24528","08/04/2022","MAQUETTES 2022-2025\\FST LICENCE chimie BGC.xlsm","-","non concerné","initiale","non","non","non"]
["2016-2025","licence","chimie","tremplin MIPC","ouvert","20141592",null,"24528","08/04/2022","MAQUETTES 2022-2025\\FST LICENCE chimie MIPC .xlsm","-","non concerné","initiale","non","non","non"]
["2016-2025","licence","informatique","-","ouvert","20141593","-","24514","08/04/2022","MAQUETTES 2022-2025\\FST LICENCE informatique.xlsm","-","non concerné","initiale","non","non","non"]
["2022-2025","licence","informatique","accès santé","ouverture prévue","20141593","-","24514","08/04/2022","MAQUETTES 2022-2025\\FST LICENCE informatique.xlsm","-","non concerné","initiale","non","non","non"]
["2022-2025","licence","informatique","alternance","ouverture prévue","20141593","-","24514","08/04/2022","MAQUETTES 2022-2025\\FST LICENCE informatique parcours alternance.xlsx","-","non concerné","initiale, continue","oui","oui","non"]
["2016-2025","licence","mathématiques","-","ouvert","20141594","-","24518","08/04/2022","MAQUETTES 2022-2025\\FST LICENCE mathématiques.xlsm","-","non concerné","initiale","non","non","non"]
["2022-2025","licence","mathématiques","accès santé","ouverture prévue","20141594","-","24518","08/04/2022","MAQUETTES 2022-2025\\FST LICENCE mathématiques.xlsm","-","non concerné","initiale","non","non","non"]
["2016-2025","licence","mathématiques","PPE","ouvert","20141594","-","24518","08/04/2022","MAQUETTES 2022-2025\\FST LICENCE mathématiques PPPE.xlsm","-","non concerné","initiale","non","non","oui"]
["2022-2025","licence","physique","-","ouverture prévue",null,null,"24519","08/04/2022","MAQUETTES 2022-2025\\FST LICENCE physique.xlsm","-","non concerné","initiale","non","non","non"]
["2016-2025","licence","portail BGC","-","ouvert",null,null,null,"08/04/2022","MAQUETTES 2022-2025\\FST LICENCE portail BGC.xlsm","-","non concerné","initiale","non","non","non"]
["2016-2025","licence","portail MIPC","tremplin MIPC","ouvert",null,null,null,"08/04/2022","MAQUETTES 2022-2025\\FST LICENCE portail MIPC.xlsm","-","non concerné","initiale","non","non","non"]
["2016-2025","licence","sciences de la terre","-","ouvert","20141598","-","24531","08/04/2022","MAQUETTES 2022-2025\\FST LICENCE sciences de la terre.xlsm","-","non concerné","initiale, continue","non","non","non"]
["2022-2025","licence","sciences de la vie","accès santé","ouverture prévue","20141599","-","24530","08/04/2022","MAQUETTES 2022-2025\\FST LICENCE sciences de la vie parcours biologie cellulaire et physiologie.xlsm","-","non concerné","initiale, continue","non","non","non"]
["2016-2025","licence","sciences de la vie","biologie cellulaire et physiologie","ouvert","20141599","-","24530","08/04/2022","MAQUETTES 2022-2025\\FST LICENCE sciences de la vie parcours biologie cellulaire et physiologie.xlsm","-","non concerné","initiale","non","non","non"]
["2016-2025","licence","sciences de la vie","biologie des organismes et des populations","ouvert","20141599","-","24530","08/04/2022","MAQUETTES 2022-2025\\FST LICENCE sciences de la vie parcours biologie des organismes et des populations.xlsm","-","non concerné","initiale, continue","non","non","non"]
["2016-2025","licence","sciences et techniques des activités physiques et sportives (STAPS)  : activité physique adaptée et santé","-","ouvert","20190358","-","24540","08/04/2022","MAQUETTES 2022-2025\\FST LICENCE STAPS activité physique adaptée et santé.xlsm","-","non concerné","initiale","non","non","oui"]
["2016-2025","licence","sciences et techniques des activités physiques et sportives (STAPS) : éducation et motricité","-","ouvert","20190359","-","24541","08/04/2022","MAQUETTES 2022-2025\\FST LICENCE STAPS éducation et motricité.xlsm","-","non concerné","initiale","non","non","oui"]
["2016-2025","licence","sciences et techniques des activités physiques et sportives (STAPS) : entraînement sportif","-","ouvert","20190360","-","24542","08/04/2022","MAQUETTES 2022-2025\\FST LICENCE STAPS entraînement sportif.xlsm","-","non concerné","initiale","non","non","oui"]
["2022-2025","licence","gestion","-","ouverture prévue",null,null,"35924","08/04/2022","MAQUETTES 2022-2025\\IAE LICENCE gestion.xlsm","10/06/2022","MAQUETTES 2022-2025\\IAE LICENCE gestion.xlsm","initiale, continue","non","non","oui"]
["2022-2025","licence","gestion","comptabilité contrôle audit finance","ouverture prévue",null,null,"35924","08/04/2022","MAQUETTES 2022-2025\\IAE LICENCE gestion parcours comptabilité contrôle audit finance.xlsm","-","non concerné","initiale, continue","non","non","oui"]
["2022-2025","licence","gestion","conseil, innovation et stratégies digitales","ouverture prévue",null,null,null,"08/04/2022","MAQUETTES 2022-2025\\IAE LICENCE gestion parcours conseil, innovation et stratégies digitales.xlsm","10/06/2022","MAQUETTES 2022-2025\\IAE LICENCE gestion parcours conseil, innovation et stratégies digitales.xlsm","initiale, continue","non","non","oui"]
["2022-2025","licence","gestion","management et gestion des organisations","ouverture prévue",null,null,null,"08/04/2022","MAQUETTES 2022-2025\\IAE LICENCE gestion parcours management et gestion des organisations.xlsm","-","non concerné","initiale, continue","non","non","oui"]
["2022-2025","licence","administration économique et sociale","-","ouverture prévue","20141584","-","24427","08/04/2022","MAQUETTES 2022-2025\\IAE LICENCE admnistration économique et sociale parcours adminstration et gestion des organisations.xlsm","-","non concerné","initiale","non","non","oui"]
["2022-2025","licence","administration économique et sociale","accès santé","ouverture prévue","20141584","-","24427","08/04/2022","MAQUETTES 2022-2025\\IAE LICENCE administration économique et sociale parcours accès santé.xlsm","-","non concerné","initiale","non","non","non"]
["2022-2025","licence","administration économique et sociale","administration et gestion des organisations","ouvert","20141584","-","24427","08/04/2022","MAQUETTES 2022-2025\\IAE LICENCE admnistration économique et sociale parcours adminstration et gestion des organisations.xlsm","-","non concerné","initiale, continue","non","non","oui"]
["2022-2025","licence","administration économique et sociale","économie sociale et solidaire","ouvert","20141584","-","24427","08/04/2022","MAQUETTES 2022-2025\\IAE LICENCE administration économique et sociale parcours économie sociale et solidaire.xlsm","-","non concerné","initiale, continue","non","non","oui"]
["2022-2025","licence","administration économique et sociale","enseignement et carrières publiques","ouvert","20141584","-","24427","08/04/2022","MAQUETTES 2022-2025\\IAE LICENCE administration économique et sociale parcours enseignement et carrières publiques.xlsm","-","non concerné","initiale, continue","non","non","oui"]
["2022-2025","licence","sciences pour l’ingénieur","énergie électrique et automatique (EEA)","ouverture prévue","20141601","-","24538","10/06/2022","MAQUETTES 2022-2025\\IUTR LICENCE sciences pour l'ingénieur parcours énergie électrique et automatique.xlsm","-","non concerné","initiale","non","non","oui"]
["2022-2025","licence","sciences pour l’ingénieur","génie industriel","ouverture prévue","20141601","-","24538","10/06/2022","MAQUETTES 2022-2025\\IUTR LICENCE sciences pour l'ingénieur parcours génie industriel.xlsm","-","non concerné","initiale, continue","non","non","oui"]
["2022-2025","licence","sciences pour l’ingénieur","traitement de l’information et instrumentation pour l’ingénieur","ouverture prévue","20141601","-","24538","10/06/2022","MAQUETTES 2022-2025\\IUTR LICENCE sciences pour l'ingénieur parcours génie industriel.xlsm","-","non concerné","initiale","non","non","non"]
["2016-2025","licence","PASS","-","ouvert",null,null,null,"15/05/2020","MAQUETTES INITIALES\\MI_MEDECINE_LICENCE_PASS_15.05.2020.pdf","17/09/2021","MAQUETTES MODIFIEES\\MM_MEDECINE_LICENCE_PASS_17.09.2021.xlsx","initiale, continue","non","non","non"]
["2016-2025","licence","sciences pour la santé","-","ouvert",null,"-","25172","08/04/2022","MAQUETTES 2022-2025\\MEDECINE LICENCE sciences pour la santé parcours accès santé.xlsm","-","-","initiale","non","non","non"]
["2022-2025","licence","sciences pour la santé","accès santé","ouverture prévue",null,"-","25172","08/04/2022","MAQUETTES 2022-2025\\MEDECINE LICENCE sciences pour la santé parcours accès santé.xlsm","-","non concerné","initiale","non","non","non"]
["2022-2025","licence","sciences pour la santé","ingénierie santé & eSanté","ouverture prévue",null,"-","25172","08/04/2022","MAQUETTES 2022-2025\\MEDECINE LICENCE sciences pour la santé parcours ingénierie santé & eSanté.xlsm","-","non concerné","initiale","non","non","oui"]
["2022-2025","licence","sciences pour la santé","prévention et accompagnement en santé & eSanté","ouverture prévue",null,"-","25172","08/04/2022","MAQUETTES 2022-2025\\MEDECINE LICENCE sciences pour la santé parcours prévention et accompagnement en santé & eSanté.xlsm","-","non concerné","initiale","non","non","oui"]
["2022-2025","licence","sciences pour la santé","sciences infirmières","ouverture prévue",null,"-","25172","08/04/2022","MAQUETTES 2022-2025\\MEDECINE LICENCE sciences pour la santé parcours sciences infirmières.xlsm","-","non concerné","initiale","non","non","oui"]
["2022-2025","licence","géographie et aménagement","ETS environnement territoire santé","ouverture prévue","20141587","-","24433","08/04/2022","MAQUETTES 2022-2025\\SHS LICENCE géographie et aménagement parcours ETS environnement territoire santé.xlsm","-","non concerné","initiale","non","oui","non"]
["2022-2025","licence","géographie et aménagement","géohistoire archéologie patrimoine","ouverture prévue","20141587","-","24433","08/04/2022","MAQUETTES 2022-2025\\SHS LICENCE géographie et aménagement parcours géohistoire archéologie patrimoine.xlsm","-","non concerné","initiale","non","oui","non"]
["2022-2025","licence","histoire","formation à la recherche en histoire","ouverture prévue","20141588","-","24430","08/04/2022","MAQUETTES 2022-2025\\SHS LICENCE histoire parcours formation à la recherche en histoire.xlsm","-","non concerné","initiale","non","non","oui"]
["2022-2025","licence","histoire","formation aux métiers de l'enseignement","ouverture prévue","20141588","-","24430","08/04/2022","MAQUETTES 2022-2025\\SHS LICENCE histoire parcours formation aux métiers de l'enseignement.xlsm","-","non concerné","initiale","non","non","non"]
["2022-2025","licence","histoire","géohistoire archéologie patrimoine","ouverture prévue","20141588","-","24430","08/04/2022","MAQUETTES 2022-2025\\SHS LICENCE histoire parcours géohistoire archéologie patrimoine.xlsm","-","non concerné","initiale","non","non","oui"]
["2022-2025","licence","sciences de l’éducation et de la formation","-","ouverture prévue","20141590","-","24461","08/04/2022","MAQUETTES 2022-2025\\SHS LICENCE sciences de l’éducation et de la formation.xlsm","-","non concerné","initiale, continue","non","non","oui"]
["2016-2025","licence","sociologie","-","ouvert","20141591","-","24434","08/04/2022","MAQUETTES 2022-2025\\SHS LICENCE sociologie.xlsm","-","non concerné","initiale","non","non","non"]
["2016-2025","licence","information, communication","innovation, design et numérique","ouvert","20140759","Lyon 2","24468","04/05/2018","MAQUETTES INITIALES\\MI_TSE_LICENCE_information communication","18/06/2021","MAQUETTES MODIFIEES\\MM_TSE_LICENCE_information communication_18.06.2021.pdf","initiale, continue","oui","oui","non"]

{"sheet":"liste automatisée mentions","index":2,"n_rows":31,"n_cols":4,"rows_kept":31,"cut":false,"hidden":true,"merged":[]}
["PERIODE  D'ACCREDITATION","DIPLÔME","MENTION / INTITULE","STATUT  DE LA FORMATION POUR LES IA  DE L'ANNE EN COURS"]
["2022-2025","licence","administration économique et sociale","ouverture prévue"]
["2016-2025","licence","administration publique","ouvert"]
["2016-2025","licence","arts du spectacle","ouvert"]
["2016-2025","licence","arts plastiques","ouvert"]
["2016-2025","licence","chimie","ouvert"]
["2016-2025","licence","droit","ouvert"]
["2022-2025","licence","économie","ouverture prévue"]
["2022-2025","licence","géographie et aménagement","ouverture prévue"]
["2022-2025","licence","gestion","ouverture prévue"]
["2022-2025","licence","histoire","ouverture prévue"]
["2016-2025","licence","information, communication","ouvert"]
["2016-2025","licence","informatique","ouvert"]
["2022-2025","licence","langues étrangères appliquées","ouverture prévue"]
["2016-2025","licence","langues, littératures et civilisations étrangères et régionales","ouvert"]
["2022-2025","licence","lettres","ouverture prévue"]
["2016-2025","licence","mathématiques","ouvert"]
["2016-2025","licence","musicologie","ouvert"]
["2016-2025","licence","PASS","ouvert"]
["2022-2025","licence","physique","ouverture prévue"]
["2016-2025","licence","portail BGC","ouvert"]
["2016-2025","licence","portail MIPC","ouvert"]
["2022-2025","licence","sciences de l’éducation et de la formation","ouverture prévue"]
["2016-2025","licence","sciences de la terre","ouvert"]
["2022-2025","licence","sciences de la vie","ouverture prévue"]
["2016-2025","licence","sciences et techniques des activités physiques et sportives (STAPS)  : activité physique adaptée et santé","ouvert"]
["2016-2025","licence","sciences et techniques des activités physiques et sportives (STAPS) : éducation et motricité","ouvert"]
["2016-2025","licence","sciences et techniques des activités physiques et sportives (STAPS) : entraînement sportif","ouvert"]
["2022-2025","licence","sciences pour l’ingénieur","ouverture prévue"]
["2016-2025","licence","sciences pour la santé","ouvert"]
["2016-2025","licence","sociologie","ouvert"]

{"sheet":"liste automatisée parcours","index":3,"n_rows":44,"n_cols":4,"rows_kept":44,"cut":false,"hidden":true,"merged":[]}
["PERIODE  D'ACCREDITATION","DIPLÔME","PARCOURS","STATUT  DE LA FORMATION POUR LES IA  DE L'ANNE EN COURS"]
["2016-2025","licence","-","ouvert"]
["2016-2025","licence","accès santé","ouvert"]
["2022-2025","licence","administration et gestion des organisations","ouvert"]
["2022-2025","licence","alternance","ouverture prévue"]
["2016-2025","licence","anglais","ouvert"]
["2022-2025","licence","anglais, allemand","ouverture prévue"]
["2022-2025","licence","anglais, allemand, osez l'Allemand","ouverture prévue"]
["2022-2025","licence","anglais, espagnol","ouverture prévue"]
["2016-2025","licence","anglais, italien","ouvert"]
["2016-2025","licence","anglais, portugais","ouvert"]
["2016-2025","licence","art dramatique (Comédie)","ouvert"]
["2016-2025","licence","arts plastiques","ouvert"]
["2016-2025","licence","biologie cellulaire et physiologie","ouvert"]
["2016-2025","licence","biologie des organismes et des populations","ouvert"]
["2022-2025","licence","comptabilité contrôle audit finance","ouverture prévue"]
["2022-2025","licence","conseil, innovation et stratégies digitales","ouverture prévue"]
["2016-2025","licence","droit","ouvert"]
["2022-2025","licence","droit et santé","ouverture prévue"]
["2022-2025","licence","économie","ouverture prévue"]
["2022-2025","licence","économie sociale et solidaire","ouvert"]
["2022-2025","licence","énergie électrique et automatique (EEA)","ouverture prévue"]
["2022-2025","licence","enseignement et carrières publiques","ouvert"]
["2016-2025","licence","espagnol","ouvert"]
["2022-2025","licence","ETS environnement territoire santé","ouverture prévue"]
["2022-2025","licence","formation à la recherche en histoire","ouverture prévue"]
["2022-2025","licence","formation aux métiers de l'enseignement","ouverture prévue"]
["2022-2025","licence","génie industriel","ouverture prévue"]
["2022-2025","licence","géohistoire archéologie patrimoine","ouverture prévue"]
["2022-2025","licence","ingénierie santé & eSanté","ouverture prévue"]
["2016-2025","licence","innovation, design et numérique","ouvert"]
["2022-2025","licence","international track","ouverture prévue"]
["2022-2025","licence","langues, littérature et civilisations de l'antiquité","ouverture prévue"]
["2016-2025","licence","lettres et arts","ouvert"]
["2016-2025","licence","lettres modernes","ouvert"]
["2022-2025","licence","lettres tremplin","ouverture prévue"]
["2022-2025","licence","management et gestion des organisations","ouverture prévue"]
["2016-2025","licence","musique et musicologie","ouvert"]
["2022-2025","licence","musique et musicologie tremplin","ouverture prévue"]
["2016-2025","licence","PPE","ouvert"]
["2022-2025","licence","prévention et accompagnement en santé & eSanté","ouverture prévue"]
["2022-2025","licence","sciences infirmières","ouverture prévue"]
["2022-2025","licence","traitement de l’information et instrumentation pour l’ingénieur","ouverture prévue"]
["2016-2025","licence","tremplin MIPC","ouvert"]

{"sheet":"LISTES","index":4,"n_rows":12,"n_cols":10,"rows_kept":12,"cut":false,"hidden":true,"merged":[]}
["Choisir la composante dans le menu déroulant","choisir dans la liste","Stage-Choisir la durée ici","Choisir le semestre dans le menu déroulant","EN ATTENTE VOTE CFVU","choisir modalités pédagogiques","oui",1,"X","Choisir dans la liste"]
["ALL","Obligatoire","stage (heures)","Semestre 1","VALIDEE PAR CFVU","initiale","non",2,null,"Facultatif "]
["DEPT","Option","stage (semaines)","Semestre 2","REJETEE PAR CFVU","continue",null,null,null,"Obligatoire"]
["ECOLE D'ECONOMIE","Facultatif","stage (mois)","Semestre 3",null,"initiale, continue",null,null,null,"Non rattrapable"]
["DROIT",null,null,"Semestre 4"]
["FST",null,null,"Semestre 5"]
["IAE",null,null,"Semestre 6"]
["IUT ROANNE",null,null,"Semestre 7"]
["IUT ST-ETIENNE",null,null,"Semestre 8"]
["MEDECINE",null,null,"Semestre 9"]
["SHS",null,null,"Semestre 10"]
["TELECOM ST-ETIENNE"]